[Event "*** Titled Tuesday Blitz"]
[Site "Chess.com"]
[Date "2020.04.14"]
[Round "3"]
[White "RovenVogel"]
[Black "RojonR"]
[Result "1-0"]
[WhiteElo "2627"]
[BlackElo "2399"]
[TimeControl "180+1"]
[EndTime "10:27:45 PDT"]
[Termination "RovenVogel won on time"]

1. d4 {[%clk 0:03:00.9]} 1... Nf6 {[%clk 0:02:57.9]} 2. c4 {[%clk 0:03:00]} 2...
e6 {[%clk 0:02:56.3]} 3. Nf3 {[%clk 0:02:59.9]} 3... Bb4+ {[%clk 0:02:55.8]} 4.
Bd2 {[%clk 0:02:59.3]} 4... Qe7 {[%clk 0:02:54.8]} 5. g3 {[%clk 0:02:58.2]} 5...
Bxd2+ {[%clk 0:02:54.5]} 6. Qxd2 {[%clk 0:02:56.7]} 6... Nc6 {[%clk 0:02:53.2]}
7. Nc3 {[%clk 0:02:56.4]} 7... d5 {[%clk 0:02:53.1]} 8. cxd5 {[%clk 0:02:48.9]}
8... exd5 {[%clk 0:02:52.3]} 9. Bg2 {[%clk 0:02:49.3]} 9... O-O {[%clk
0:02:52.5]} 10. O-O {[%clk 0:02:48.8]} 10... a6 {[%clk 0:02:52.7]} 11. Qf4
{[%clk 0:02:40]} 11... Na7 {[%clk 0:02:47.5]} 12. Rfd1 {[%clk 0:02:32.5]} 12...
c6 {[%clk 0:02:44.9]} 13. Ne5 {[%clk 0:02:28.2]} 13... Nb5 {[%clk 0:02:44]} 14.
Na4 {[%clk 0:02:19.6]} 14... Nd6 {[%clk 0:02:32.8]} 15. Nc5 {[%clk 0:02:17]}
15... Bf5 {[%clk 0:02:14.1]} 16. g4 {[%clk 0:02:10.9]} 16... Bg6 {[%clk
0:02:08.9]} 17. h4 {[%clk 0:02:09.9]} 17... h6 {[%clk 0:01:44.1]} 18. Rac1
{[%clk 0:02:08.1]} 18... Nfe4 {[%clk 0:01:33.9]} 19. h5 {[%clk 0:02:03.8]} 19...
Bh7 {[%clk 0:00:34.3]} 20. Nxe4 {[%clk 0:01:53.4]} 20... Bxe4 {[%clk 0:00:33.6]}
21. Bxe4 {[%clk 0:01:49.3]} 21... Nxe4 {[%clk 0:00:33.1]} 22. f3 {[%clk
0:01:47.5]} 22... Nd6 {[%clk 0:00:32.8]} 23. Kf2 {[%clk 0:01:46.7]} 23... Rfe8
{[%clk 0:00:29.3]} 24. Rc2 {[%clk 0:01:45.5]} 24... f6 {[%clk 0:00:24.4]} 25.
Ng6 {[%clk 0:01:42.8]} 25... Qe6 {[%clk 0:00:24.3]} 26. Nh4 {[%clk 0:01:35.1]}
26... Nc4 {[%clk 0:00:21.6]} 27. Rd3 {[%clk 0:01:33.9]} 27... Nd6 {[%clk
0:00:20.4]} 28. b3 {[%clk 0:01:30]} 28... Re7 {[%clk 0:00:20.5]} 29. Re3 {[%clk
0:01:24.3]} 29... Qxe3+ {[%clk 0:00:18.2]} 30. Qxe3 {[%clk 0:01:25.2]} 30...
Rxe3 {[%clk 0:00:18.8]} 31. Kxe3 {[%clk 0:01:25.8]} 31... Re8+ {[%clk
0:00:19.5]} 32. Kf4 {[%clk 0:01:24]} 32... Kf7 {[%clk 0:00:18.3]} 33. e3 {[%clk
0:01:22.4]} 33... Re6 {[%clk 0:00:13.8]} 34. Rc5 {[%clk 0:01:17.1]} 34... Re7
{[%clk 0:00:13.2]} 35. a4 {[%clk 0:01:15.2]} 35... Re8 {[%clk 0:00:12.6]} 36.
Nf5 {[%clk 0:01:13.3]} 36... Nxf5 {[%clk 0:00:12.6]} 37. gxf5 {[%clk 0:01:14.2]}
37... Ke7 {[%clk 0:00:09.8]} 38. e4 {[%clk 0:01:12.3]} 38... Kd6 {[%clk
0:00:07.8]} 39. b4 {[%clk 0:01:11]} 1-0

[Event "*** Titled Tuesday Blitz"]
[Site "Chess.com"]
[Date "2020.04.14"]
[Round "3"]
[White "Alexander_Moskalenko"]
[Black "arctic_t00"]
[Result "1-0"]
[WhiteElo "2952"]
[BlackElo "2496"]
[TimeControl "180+1"]
[EndTime "10:27:47 PDT"]
[Termination "Alexander_Moskalenko won on time"]

1. e4 {[%clk 0:02:43.9]} 1... c5 {[%clk 0:02:59.6]} 2. Nf3 {[%clk 0:02:39.4]}
2... d6 {[%clk 0:02:59.5]} 3. d4 {[%clk 0:02:32.6]} 3... cxd4 {[%clk 0:03:00.4]}
4. Nxd4 {[%clk 0:02:33.2]} 4... Nf6 {[%clk 0:03:00.8]} 5. Nc3 {[%clk 0:02:33.8]}
5... a6 {[%clk 0:03:01]} 6. Bc4 {[%clk 0:02:34]} 6... e6 {[%clk 0:02:59.7]} 7.
Bb3 {[%clk 0:02:34.3]} 7... Nbd7 {[%clk 0:02:59.1]} 8. Bg5 {[%clk 0:02:34.1]}
8... Nc5 {[%clk 0:02:58.4]} 9. O-O {[%clk 0:02:34]} 9... Be7 {[%clk 0:02:57.8]}
10. Re1 {[%clk 0:02:34.5]} 10... O-O {[%clk 0:02:49.8]} 11. Qd2 {[%clk
0:02:34.7]} 11... Qc7 {[%clk 0:02:47.8]} 12. Rad1 {[%clk 0:02:33.8]} 12... b5
{[%clk 0:02:45.2]} 13. f3 {[%clk 0:01:34]} 13... Bb7 {[%clk 0:02:44.9]} 14. a3
{[%clk 0:01:33.9]} 14... Rac8 {[%clk 0:02:43.1]} 15. Ba2 {[%clk 0:01:34.1]}
15... Rfe8 {[%clk 0:02:05.7]} 16. Be3 {[%clk 0:01:28]} 16... Red8 {[%clk
0:01:18.2]} 17. Qf2 {[%clk 0:01:17]} 17... d5 {[%clk 0:01:03.3]} 18. e5 {[%clk
0:01:10]} 18... Qxe5 {[%clk 0:00:43.2]} 19. Ndxb5 {[%clk 0:01:09.9]} 19... Qb8
{[%clk 0:00:38]} 20. Nd4 {[%clk 0:01:08.7]} 20... Ba8 {[%clk 0:00:33.4]} 21. Nb3
{[%clk 0:01:02.8]} 21... Nxb3 {[%clk 0:00:30]} 22. Bxb3 {[%clk 0:01:03.7]} 22...
Nd7 {[%clk 0:00:27.2]} 23. Na4 {[%clk 0:00:59.7]} 23... Bf6 {[%clk 0:00:21.6]}
24. Bd4 {[%clk 0:00:59.5]} 24... e5 {[%clk 0:00:19.9]} 25. Ba7 {[%clk
0:00:58.4]} 25... Qb5 {[%clk 0:00:20.1]} 26. Nc3 {[%clk 0:00:56.5]} 26... Qb7
{[%clk 0:00:09.6]} 27. Nxd5 {[%clk 0:00:55.3]} 27... Bg5 {[%clk 0:00:05.1]} 28.
h4 {[%clk 0:00:54.5]} 28... Bh6 {[%clk 0:00:04.7]} 29. Ne7+ {[%clk 0:00:54.3]}
29... Kh8 {[%clk 0:00:04.9]} 30. Nxc8 {[%clk 0:00:55.2]} 30... Rxc8 {[%clk
0:00:05.2]} 31. Bd5 {[%clk 0:00:50.9]} 31... Qc7 {[%clk 0:00:04.7]} 32. Bxa8
{[%clk 0:00:50.5]} 32... Rxa8 {[%clk 0:00:05.6]} 33. Be3 {[%clk 0:00:51]} 33...
Bxe3 {[%clk 0:00:04.6]} 34. Rxe3 {[%clk 0:00:51.9]} 34... Rb8 {[%clk 0:00:04.6]}
35. Rc3 {[%clk 0:00:51.8]} 35... Qb7 {[%clk 0:00:03.7]} 36. Rb3 {[%clk
0:00:52.1]} 36... Qc7 {[%clk 0:00:03.6]} 37. Rxd7 {[%clk 0:00:50.8]} 1-0

[Event "*** Titled Tuesday Blitz"]
[Site "Chess.com"]
[Date "2020.04.14"]
[Round "3"]
[White "Aryangholami"]
[Black "Stormeman100100"]
[Result "1-0"]
[WhiteElo "2737"]
[BlackElo "2452"]
[TimeControl "180+1"]
[EndTime "10:27:47 PDT"]
[Termination "Aryangholami won by checkmate"]

1. Nf3 {[%clk 0:03:00.9]} 1... d5 {[%clk 0:02:55.4]} 2. g3 {[%clk 0:03:01.8]}
2... Nf6 {[%clk 0:02:54.2]} 3. Bg2 {[%clk 0:03:02.7]} 3... g6 {[%clk 0:02:51.8]}
4. O-O {[%clk 0:03:03.6]} 4... Bg7 {[%clk 0:02:52]} 5. b3 {[%clk 0:03:04.2]}
5... c5 {[%clk 0:02:46.7]} 6. Bb2 {[%clk 0:03:04.4]} 6... Nc6 {[%clk 0:02:46.2]}
7. c4 {[%clk 0:03:03.1]} 7... d4 {[%clk 0:02:45.6]} 8. e3 {[%clk 0:03:02.7]}
8... O-O {[%clk 0:02:45.5]} 9. exd4 {[%clk 0:03:02.8]} 9... cxd4 {[%clk
0:02:46.4]} 10. b4 {[%clk 0:03:02.6]} 10... Nxb4 {[%clk 0:02:11.2]} 11. Bxd4
{[%clk 0:02:45.3]} 11... Bg4 {[%clk 0:02:09.5]} 12. Bc3 {[%clk 0:02:37.6]} 12...
Ne4 {[%clk 0:01:47.1]} 13. Bxg7 {[%clk 0:02:30.3]} 13... Kxg7 {[%clk 0:01:47.1]}
14. Qb3 {[%clk 0:02:14.6]} 14... Qd3 {[%clk 0:01:20.8]} 15. Ne5 {[%clk
0:01:59.5]} 15... Qxb3 {[%clk 0:01:17.5]} 16. axb3 {[%clk 0:01:58.7]} 16... Nf6
{[%clk 0:00:36.6]} 17. Nxg4 {[%clk 0:01:54.1]} 17... Nxg4 {[%clk 0:00:36]} 18.
Bxb7 {[%clk 0:01:54.6]} 18... Rab8 {[%clk 0:00:35.3]} 19. Rxa7 {[%clk
0:01:54.4]} 19... Rfd8 {[%clk 0:00:32]} 20. Bg2 {[%clk 0:01:46.9]} 20... e6
{[%clk 0:00:30.9]} 21. Rc1 {[%clk 0:01:29.9]} 21... Nxf2 {[%clk 0:00:27.7]} 22.
c5 {[%clk 0:01:23.1]} 22... Nbd3 {[%clk 0:00:20.7]} 23. Rc3 {[%clk 0:01:17.1]}
23... Nd1 {[%clk 0:00:19.9]} 24. Rc2 {[%clk 0:00:46.3]} 24... Rxb3 {[%clk
0:00:18.5]} 25. Na3 {[%clk 0:00:46.3]} 25... Nb4 {[%clk 0:00:07.9]} 26. Rc1
{[%clk 0:00:46.1]} 26... Nb2 {[%clk 0:00:08]} 27. c6 {[%clk 0:00:44.1]} 27...
N2d3 {[%clk 0:00:06.8]} 28. Rf1 {[%clk 0:00:42.8]} 28... Rb2 {[%clk 0:00:05.6]}
29. Rfxf7+ {[%clk 0:00:40.7]} 29... Kh6 {[%clk 0:00:05.9]} 30. h4 {[%clk
0:00:38]} 30... Kh5 {[%clk 0:00:05.7]} 31. Bf3+ {[%clk 0:00:37.4]} 31... Kh6
{[%clk 0:00:03.9]} 32. Rxh7# {[%clk 0:00:38.3]} 1-0

[Event "*** Titled Tuesday Blitz"]
[Site "Chess.com"]
[Date "2020.04.14"]
[Round "3"]
[White "SlavenPastar"]
[Black "Perecke"]
[Result "1-0"]
[WhiteElo "2418"]
[BlackElo "2196"]
[TimeControl "180+1"]
[EndTime "10:27:47 PDT"]
[Termination "SlavenPastar won by checkmate"]

1. d4 {[%clk 0:03:00.9]} 1... d5 {[%clk 0:02:59.4]} 2. c4 {[%clk 0:03:00.8]}
2... e6 {[%clk 0:02:59.4]} 3. Nc3 {[%clk 0:03:00.7]} 3... Nf6 {[%clk 0:02:59.4]}
4. cxd5 {[%clk 0:03:00.6]} 4... exd5 {[%clk 0:03:00.3]} 5. Bg5 {[%clk
0:03:00.2]} 5... Be7 {[%clk 0:03:00.9]} 6. e3 {[%clk 0:03:00.2]} 6... O-O {[%clk
0:03:00.7]} 7. Qc2 {[%clk 0:03:00.7]} 7... Re8 {[%clk 0:02:59.2]} 8. Bd3 {[%clk
0:03:01.1]} 8... h6 {[%clk 0:02:59.3]} 9. Bh4 {[%clk 0:03:00.9]} 9... c5 {[%clk
0:02:59.3]} 10. Nf3 {[%clk 0:02:55.5]} 10... Nc6 {[%clk 0:02:47.5]} 11. O-O
{[%clk 0:02:54.1]} 11... c4 {[%clk 0:02:31.8]} 12. Bf5 {[%clk 0:02:52.7]} 12...
Nh5 {[%clk 0:02:30.4]} 13. Bxe7 {[%clk 0:02:45.1]} 13... Nxe7 {[%clk 0:02:31.3]}
14. Bxc8 {[%clk 0:02:42.2]} 14... Rxc8 {[%clk 0:02:32.2]} 15. Ne5 {[%clk
0:02:36.7]} 15... Nc6 {[%clk 0:02:01.3]} 16. Nxc6 {[%clk 0:02:31.7]} 16... Rxc6
{[%clk 0:02:02.2]} 17. Qf5 {[%clk 0:02:26.8]} 17... Nf6 {[%clk 0:01:57.3]} 18.
Rfc1 {[%clk 0:02:18.1]} 18... g6 {[%clk 0:01:45.9]} 19. Qh3 {[%clk 0:02:11.7]}
19... Kg7 {[%clk 0:01:36.7]} 20. Qf3 {[%clk 0:02:06.3]} 20... Ne4 {[%clk
0:01:36]} 21. Nxe4 {[%clk 0:01:59.9]} 21... Rxe4 {[%clk 0:01:36.9]} 22. b3
{[%clk 0:01:56.3]} 22... b5 {[%clk 0:01:36.4]} 23. bxc4 {[%clk 0:01:56.4]} 23...
bxc4 {[%clk 0:01:37.3]} 24. Rc3 {[%clk 0:01:52.7]} 24... Qa5 {[%clk 0:01:27]}
25. Rc2 {[%clk 0:01:43.4]} 25... c3 {[%clk 0:01:16.3]} 26. Rac1 {[%clk
0:01:40.9]} 26... Re7 {[%clk 0:01:14.7]} 27. h4 {[%clk 0:01:40.4]} 27... Rb7
{[%clk 0:01:07.7]} 28. h5 {[%clk 0:01:38.3]} 28... Rb2 {[%clk 0:01:03.5]} 29.
hxg6 {[%clk 0:01:33.6]} 29... fxg6 {[%clk 0:01:01.4]} 30. Qg4 {[%clk 0:01:27.9]}
30... Rc7 {[%clk 0:00:42.7]} 31. Qe6 {[%clk 0:01:25.1]} 31... Rxc2 {[%clk
0:00:39.2]} 32. Rxc2 {[%clk 0:01:23.2]} 32... h5 {[%clk 0:00:31.6]} 33. Qe5+
{[%clk 0:01:13.8]} 33... Kh7 {[%clk 0:00:29.2]} 34. g4 {[%clk 0:01:11.3]} 34...
hxg4 {[%clk 0:00:26]} 35. Kg2 {[%clk 0:01:11.8]} 35... Rb7 {[%clk 0:00:16.9]}
36. Rc1 {[%clk 0:01:10.9]} 36... Qb4 {[%clk 0:00:06.5]} 37. Rh1+ {[%clk
0:01:10.1]} 37... Kg8 {[%clk 0:00:05.9]} 38. Rh8+ {[%clk 0:01:10.1]} 38... Kf7
{[%clk 0:00:05.7]} 39. Qxd5+ {[%clk 0:01:08.4]} 39... Kf6 {[%clk 0:00:03.4]} 40.
Qe5+ {[%clk 0:01:01.4]} 40... Kf7 {[%clk 0:00:03.5]} 41. Rh7+ {[%clk 0:01:00.3]}
41... Kf8 {[%clk 0:00:02.6]} 42. Qh8# {[%clk 0:01:00.6]} 1-0

[Event "*** Titled Tuesday Blitz"]
[Site "Chess.com"]
[Date "2020.04.14"]
[Round "3"]
[White "IAgrest"]
[Black "florianschwabeneder"]
[Result "0-1"]
[WhiteElo "2236"]
[BlackElo "2528"]
[TimeControl "180+1"]
[EndTime "10:27:48 PDT"]
[Termination "florianschwabeneder won by resignation"]

1. e4 {[%clk 0:03:00.9]} 1... d5 {[%clk 0:02:59.8]} 2. exd5 {[%clk 0:03:00.5]}
2... Qxd5 {[%clk 0:03:00.7]} 3. Nc3 {[%clk 0:03:00.4]} 3... Qd6 {[%clk
0:03:00.9]} 4. Nf3 {[%clk 0:02:59.7]} 4... Nf6 {[%clk 0:03:01.1]} 5. d4 {[%clk
0:02:57.9]} 5... c6 {[%clk 0:03:01.4]} 6. Bc4 {[%clk 0:02:57.7]} 6... g6 {[%clk
0:02:57.4]} 7. O-O {[%clk 0:02:49.7]} 7... Bg7 {[%clk 0:02:57.5]} 8. Re1 {[%clk
0:02:49.7]} 8... O-O {[%clk 0:02:57.3]} 9. h3 {[%clk 0:02:48.7]} 9... Nbd7
{[%clk 0:02:50.6]} 10. Bg5 {[%clk 0:02:39.1]} 10... Nb6 {[%clk 0:02:44.9]} 11.
Bb3 {[%clk 0:02:38.2]} 11... a5 {[%clk 0:02:39.4]} 12. a4 {[%clk 0:02:26]} 12...
e6 {[%clk 0:02:36.2]} 13. Qe2 {[%clk 0:02:19.9]} 13... Nbd5 {[%clk 0:02:34.6]}
14. Ne4 {[%clk 0:02:06.7]} 14... Nxe4 {[%clk 0:02:30.6]} 15. Qxe4 {[%clk
0:02:07.6]} 15... b6 {[%clk 0:02:27.7]} 16. Rad1 {[%clk 0:02:06.3]} 16... Bb7
{[%clk 0:02:24.7]} 17. c4 {[%clk 0:01:47.1]} 17... Nb4 {[%clk 0:02:19.6]} 18.
Qh4 {[%clk 0:01:38.5]} 18... Rfe8 {[%clk 0:02:15.7]} 19. Bf4 {[%clk 0:01:22.7]}
19... Qd7 {[%clk 0:01:44.5]} 20. Ng5 {[%clk 0:01:20.7]} 20... h6 {[%clk
0:01:37.8]} 21. Ne4 {[%clk 0:01:18.3]} 21... g5 {[%clk 0:01:29.9]} 22. Bxg5
{[%clk 0:00:50.3]} 22... hxg5 {[%clk 0:01:29.4]} 23. Nxg5 {[%clk 0:00:50.9]}
23... Qd8 {[%clk 0:01:19.4]} 24. Re3 {[%clk 0:00:43.2]} 24... Qf6 {[%clk
0:01:11.9]} 25. Rf3 {[%clk 0:00:28.7]} 25... Qh6 {[%clk 0:01:08.9]} 26. Qxh6
{[%clk 0:00:24.9]} 26... Bxh6 {[%clk 0:01:09.8]} 27. Nxf7 {[%clk 0:00:25.5]}
27... Bf8 {[%clk 0:01:00.6]} 28. Ne5 {[%clk 0:00:20.4]} 28... Bg7 {[%clk
0:00:54.7]} 29. Re1 {[%clk 0:00:16]} 29... Rad8 {[%clk 0:00:53.2]} 30. Rf4
{[%clk 0:00:11.7]} 30... c5 {[%clk 0:00:50]} 31. d5 {[%clk 0:00:10.9]} 31...
exd5 {[%clk 0:00:49]} 32. cxd5 {[%clk 0:00:11.2]} 32... Rxe5 {[%clk 0:00:49]}
33. d6+ {[%clk 0:00:11]} 33... Bd5 {[%clk 0:00:44.8]} 34. Rxe5 {[%clk
0:00:09.6]} 34... Bxe5 {[%clk 0:00:43.5]} 35. Bxd5+ {[%clk 0:00:09.2]} 35...
Nxd5 {[%clk 0:00:42.6]} 36. Rf5 {[%clk 0:00:09.8]} 36... Bxd6 {[%clk 0:00:41.5]}
0-1

[Event "*** Titled Tuesday Blitz"]
[Site "Chess.com"]
[Date "2020.04.14"]
[Round "3"]
[White "MergenKakabaev"]
[Black "WhiteKnight2612"]
[Result "1-0"]
[WhiteElo "2456"]
[BlackElo "2694"]
[TimeControl "180+1"]
[EndTime "10:27:49 PDT"]
[Termination "MergenKakabaev won by resignation"]

1. e4 {[%clk 0:03:00]} 1... e5 {[%clk 0:02:58.1]} 2. Nf3 {[%clk 0:02:59.8]} 2...
Nc6 {[%clk 0:02:58.5]} 3. Bb5 {[%clk 0:02:59.7]} 3... a6 {[%clk 0:02:57.2]} 4.
Ba4 {[%clk 0:02:59.3]} 4... Nf6 {[%clk 0:02:54.7]} 5. O-O {[%clk 0:02:58.3]}
5... Be7 {[%clk 0:02:55]} 6. Re1 {[%clk 0:02:57.8]} 6... b5 {[%clk 0:02:54.5]}
7. Bb3 {[%clk 0:02:57.3]} 7... d6 {[%clk 0:02:55.4]} 8. c3 {[%clk 0:02:56.4]}
8... Na5 {[%clk 0:02:54.8]} 9. Bc2 {[%clk 0:02:52.6]} 9... c5 {[%clk 0:02:55.7]}
10. h3 {[%clk 0:02:51.7]} 10... O-O {[%clk 0:02:55.1]} 11. d4 {[%clk 0:02:51.1]}
11... Qc7 {[%clk 0:02:55]} 12. Nbd2 {[%clk 0:02:50.6]} 12... Re8 {[%clk
0:02:55.2]} 13. d5 {[%clk 0:02:46.6]} 13... c4 {[%clk 0:02:54.7]} 14. Nf1 {[%clk
0:02:45.1]} 14... Bf8 {[%clk 0:02:54.2]} 15. Ng3 {[%clk 0:02:44.6]} 15... g6
{[%clk 0:02:54.4]} 16. Bd2 {[%clk 0:02:42.7]} 16... Bg7 {[%clk 0:02:54.3]} 17.
b4 {[%clk 0:02:42.1]} 17... Nb7 {[%clk 0:02:51.5]} 18. a4 {[%clk 0:02:41.6]}
18... Bd7 {[%clk 0:02:51.8]} 19. Nh2 {[%clk 0:02:24.9]} 19... a5 {[%clk
0:02:50.5]} 20. axb5 {[%clk 0:02:23]} 20... axb4 {[%clk 0:02:49.6]} 21. cxb4
{[%clk 0:02:22.9]} 21... Bxb5 {[%clk 0:02:44.6]} 22. Bc3 {[%clk 0:02:22.3]}
22... Nd7 {[%clk 0:02:40.1]} 23. h4 {[%clk 0:02:13.8]} 23... Nb6 {[%clk
0:02:38.7]} 24. Qf3 {[%clk 0:01:57.8]} 24... Qe7 {[%clk 0:02:32.6]} 25. h5
{[%clk 0:01:57]} 25... Na4 {[%clk 0:02:30.6]} 26. Bxa4 {[%clk 0:01:55.5]} 26...
Bxa4 {[%clk 0:02:31.5]} 27. Ng4 {[%clk 0:01:53.4]} 27... Bd7 {[%clk 0:02:29.3]}
28. Ne3 {[%clk 0:01:33.6]} 28... Bb5 {[%clk 0:02:26.8]} 29. Ng4 {[%clk 0:01:33]}
29... Qh4 {[%clk 0:02:16.9]} 30. Rxa8 {[%clk 0:01:09.8]} 30... Rxa8 {[%clk
0:02:15.6]} 31. Ra1 {[%clk 0:01:10]} 31... Rxa1+ {[%clk 0:02:10.5]} 32. Bxa1
{[%clk 0:01:10.9]} 32... Nd8 {[%clk 0:02:07.8]} 33. Bc3 {[%clk 0:01:07.3]} 33...
Qg5 {[%clk 0:01:53.1]} 34. Ne3 {[%clk 0:01:04.9]} 34... f6 {[%clk 0:01:47.8]}
35. Bd2 {[%clk 0:01:04.3]} 35... Qh4 {[%clk 0:01:42.9]} 36. Nef5 {[%clk
0:00:52.7]} 36... gxf5 {[%clk 0:01:39.7]} 37. Nxf5 {[%clk 0:00:52.7]} 37... c3
{[%clk 0:01:38.6]} 38. Bc1 {[%clk 0:00:45.8]} 38... Bh6 {[%clk 0:00:47.2]} 39.
Bxh6 {[%clk 0:00:40]} 39... c2 {[%clk 0:00:44.8]} 40. Nxh4 {[%clk 0:00:38.2]}
40... c1=Q+ {[%clk 0:00:43]} 1-0

[Event "*** Titled Tuesday Blitz"]
[Site "Chess.com"]
[Date "2020.04.14"]
[Round "3"]
[White "LimeInTheCoconut"]
[Black "hongnhung1234"]
[Result "1-0"]
[WhiteElo "2340"]
[BlackElo "2136"]
[TimeControl "180+1"]
[EndTime "10:27:49 PDT"]
[Termination "LimeInTheCoconut won on time"]

1. Nf3 {[%clk 0:03:00.9]} 1... f5 {[%clk 0:02:59.3]} 2. d4 {[%clk 0:02:56.8]}
2... Nf6 {[%clk 0:02:57.6]} 3. Nc3 {[%clk 0:02:55.6]} 3... g6 {[%clk 0:02:56.9]}
4. Bg5 {[%clk 0:02:53]} 4... Ne4 {[%clk 0:02:51.2]} 5. h4 {[%clk 0:02:51]} 5...
h6 {[%clk 0:02:49.5]} 6. Bf4 {[%clk 0:02:48.7]} 6... Bg7 {[%clk 0:02:45.4]} 7.
e3 {[%clk 0:02:45.4]} 7... d6 {[%clk 0:02:37.7]} 8. Bd3 {[%clk 0:02:40.7]} 8...
Nxc3 {[%clk 0:02:21.3]} 9. bxc3 {[%clk 0:02:41.6]} 9... c5 {[%clk 0:02:20.8]}
10. g4 {[%clk 0:02:19.1]} 10... c4 {[%clk 0:02:08.2]} 11. Bxc4 {[%clk 0:02:13]}
11... fxg4 {[%clk 0:02:06.7]} 12. Nd2 {[%clk 0:01:56.4]} 12... e5 {[%clk
0:01:59.7]} 13. Bg3 {[%clk 0:01:50.1]} 13... Nc6 {[%clk 0:01:51]} 14. h5 {[%clk
0:01:26]} 14... d5 {[%clk 0:01:27.8]} 15. Be2 {[%clk 0:01:08.7]} 15... Qg5
{[%clk 0:01:12.4]} 16. hxg6 {[%clk 0:00:53.4]} 16... Qxg6 {[%clk 0:01:12.4]} 17.
c4 {[%clk 0:00:23.2]} 17... exd4 {[%clk 0:00:51.7]} 18. cxd5 {[%clk 0:00:23.1]}
18... Nb4 {[%clk 0:00:40.7]} 19. e4 {[%clk 0:00:20]} 19... d3 {[%clk 0:00:30.6]}
20. Bxd3 {[%clk 0:00:19.2]} 20... Nxd3+ {[%clk 0:00:27.3]} 21. cxd3 {[%clk
0:00:18.9]} 21... Bd7 {[%clk 0:00:16.8]} 22. Rc1 {[%clk 0:00:18.2]} 22... O-O
{[%clk 0:00:12.3]} 23. O-O {[%clk 0:00:16.4]} 1-0

[Event "*** Titled Tuesday Blitz"]
[Site "Chess.com"]
[Date "2020.04.14"]
[Round "3"]
[White "amiralfio"]
[Black "2165149677570"]
[Result "0-1"]
[WhiteElo "2544"]
[BlackElo "2316"]
[TimeControl "180+1"]
[EndTime "10:27:50 PDT"]
[Termination "2165149677570 won on time"]

1. d4 {[%clk 0:03:00.9]} 1... Nf6 {[%clk 0:03:00.1]} 2. Bf4 {[%clk 0:02:47.1]}
2... b6 {[%clk 0:02:59.6]} 3. f3 {[%clk 0:02:40.1]} 3... d5 {[%clk 0:02:53.5]}
4. g4 {[%clk 0:02:34.5]} 4... e6 {[%clk 0:02:34.9]} 5. h4 {[%clk 0:02:31.7]}
5... Bd6 {[%clk 0:02:34.8]} 6. Qd2 {[%clk 0:02:29.2]} 6... c5 {[%clk 0:02:34.3]}
7. Nh3 {[%clk 0:02:20.7]} 7... Nc6 {[%clk 0:02:33.9]} 8. dxc5 {[%clk 0:02:15.4]}
8... Bxc5 {[%clk 0:02:29]} 9. Bg2 {[%clk 0:02:09]} 9... e5 {[%clk 0:02:24.9]}
10. Bg5 {[%clk 0:02:06.7]} 10... h6 {[%clk 0:02:18.2]} 11. Be3 {[%clk
0:01:57.1]} 11... Bxe3 {[%clk 0:02:12.9]} 12. Qxe3 {[%clk 0:01:58]} 12... d4
{[%clk 0:02:13.5]} 13. Qd2 {[%clk 0:01:56.4]} 13... Nd5 {[%clk 0:02:10.1]} 14.
f4 {[%clk 0:01:53.5]} 14... Qxh4+ {[%clk 0:01:55.8]} 15. Nf2 {[%clk 0:01:39.8]}
15... Qd8 {[%clk 0:01:55.3]} 16. fxe5 {[%clk 0:01:35.9]} 16... Bb7 {[%clk
0:01:35.3]} 17. Ne4 {[%clk 0:01:25.6]} 17... O-O {[%clk 0:01:17.7]} 18. Nd6
{[%clk 0:01:08.3]} 18... Ne3 {[%clk 0:01:02.2]} 19. Bf3 {[%clk 0:01:04]} 19...
Nxe5 {[%clk 0:00:46.4]} 20. Nxb7 {[%clk 0:00:50.3]} 20... Nxf3+ {[%clk
0:00:46.6]} 21. exf3 {[%clk 0:00:48.2]} 21... Qc7 {[%clk 0:00:44.1]} 22. Kf2
{[%clk 0:00:27.7]} 22... Qxb7 {[%clk 0:00:39.5]} 23. c3 {[%clk 0:00:17.5]} 23...
Rad8 {[%clk 0:00:27.5]} 24. cxd4 {[%clk 0:00:16.5]} 24... Nxg4+ {[%clk
0:00:27.7]} 25. Kg3 {[%clk 0:00:16]} 25... Ne5 {[%clk 0:00:27.9]} 26. Qf4 {[%clk
0:00:11.9]} 26... Ng6 {[%clk 0:00:28.1]} 27. Qg4 {[%clk 0:00:11.4]} 27... Qc7+
{[%clk 0:00:27.9]} 28. Kg2 {[%clk 0:00:03.5]} 28... Nf4+ {[%clk 0:00:26.3]} 29.
Kg3 {[%clk 0:00:01.8]} 29... Nd5+ {[%clk 0:00:24.9]} 0-1

[Event "*** Titled Tuesday Blitz"]
[Site "Chess.com"]
[Date "2020.04.14"]
[Round "3"]
[White "Phriex"]
[Black "Blitzstream"]
[Result "0-1"]
[WhiteElo "2439"]
[BlackElo "2706"]
[TimeControl "180+1"]
[EndTime "10:27:52 PDT"]
[Termination "Blitzstream won by resignation"]

1. d4 {[%clk 0:03:00.9]} 1... g6 {[%clk 0:02:58.8]} 2. Nf3 {[%clk 0:03:00.5]}
2... Bg7 {[%clk 0:02:58.9]} 3. c4 {[%clk 0:03:01.1]} 3... b6 {[%clk 0:02:59.2]}
4. g3 {[%clk 0:03:00.2]} 4... Bb7 {[%clk 0:02:59.5]} 5. Bg2 {[%clk 0:03:00.8]}
5... e6 {[%clk 0:03:00.1]} 6. O-O {[%clk 0:03:01.2]} 6... Ne7 {[%clk 0:03:00.6]}
7. Nc3 {[%clk 0:03:01.7]} 7... a6 {[%clk 0:03:01]} 8. e4 {[%clk 0:03:00.6]} 8...
d6 {[%clk 0:03:01.4]} 9. Re1 {[%clk 0:03:00.4]} 9... Nd7 {[%clk 0:03:01.7]} 10.
Be3 {[%clk 0:02:59.1]} 10... h6 {[%clk 0:03:01.8]} 11. h4 {[%clk 0:02:56.3]}
11... e5 {[%clk 0:02:48.3]} 12. d5 {[%clk 0:02:48.3]} 12... f5 {[%clk
0:02:44.5]} 13. h5 {[%clk 0:02:44.6]} 13... f4 {[%clk 0:02:38.5]} 14. gxf4
{[%clk 0:02:42.1]} 14... exf4 {[%clk 0:02:38.5]} 15. Bxf4 {[%clk 0:02:34.5]}
15... g5 {[%clk 0:02:19.3]} 16. Bxg5 {[%clk 0:02:11]} 16... hxg5 {[%clk
0:02:15.7]} 17. Nxg5 {[%clk 0:02:11.9]} 17... Bxc3 {[%clk 0:01:25.4]} 18. Ne6
{[%clk 0:01:52.8]} 18... Qb8 {[%clk 0:00:55.8]} 19. bxc3 {[%clk 0:01:51.5]}
19... Ne5 {[%clk 0:00:54.8]} 20. f4 {[%clk 0:01:43.9]} 20... Nf7 {[%clk
0:00:50.8]} 21. Qg4 {[%clk 0:01:31.8]} 21... Rg8 {[%clk 0:00:48]} 22. Qh4 {[%clk
0:01:26.5]} 22... Kd7 {[%clk 0:00:27.5]} 23. Kh2 {[%clk 0:01:17.3]} 23... Rxg2+
{[%clk 0:00:09.1]} 24. Kxg2 {[%clk 0:01:17.5]} 24... Qh8 {[%clk 0:00:10]} 25.
Re3 {[%clk 0:01:00.3]} 25... Rg8+ {[%clk 0:00:09.6]} 26. Rg3 {[%clk 0:01:00.8]}
26... Rxg3+ {[%clk 0:00:09.8]} 27. Qxg3 {[%clk 0:00:56.1]} 27... Qxh5 {[%clk
0:00:09.9]} 28. Rh1 {[%clk 0:00:52]} 28... Qe2+ {[%clk 0:00:09.5]} 29. Qf2
{[%clk 0:00:39.9]} 29... Qxe4+ {[%clk 0:00:09.4]} 30. Qf3 {[%clk 0:00:40.5]}
30... Qxc4 {[%clk 0:00:08.7]} 31. Rh5 {[%clk 0:00:28.6]} 31... Bxd5 {[%clk
0:00:07.5]} 0-1